[Event "55th Rubinstein Memorial-C 2019"]
[Site "Polanica-Zdroj"]
[Date "2019.08.19"]
[Round "3.1"]
[White "Majek, Kacper"]
[Black "Budzisz, Adrian"]
[Result "1-0"]
[ECO "E16"]
[WhiteElo "1984"]
[BlackElo "1631"]
[Annotator "NA RC"]
[PlyCount "109"]
[EventDate "2019.08.17"]
[EventType "swiss"]
[EventCountry "POL"]
[SourceTitle "playchess.com"]
[Source "ChessBase"]
[SourceQuality "1"]
[TimeControl "40/5400+30:1800+30"]

{[%evp 8,109,15,12,20,10,8,0,25,32767,32767,0,0,0,0,-29,25,0,17,0,45,46,32767,82,32767,32767,32767,118,127,112,32767,32767,32767,32767,162,63,121,114,32767,100,94,32767,106,93,132,110,109,120,32767,32767,125,122,138,32767,32767,128,146,136,153,190,32767,216,266,32767,315,377,32767,32767,364,408,579,555,656,32767,32767,648,533,32767,526,32767,1095,32767,661,772,858,1161,676,1458,1089,1727,1398,1765,1455,0,1297,1079,1843,1500,2220,32767,4133,1166,32767,10669]} 1. d4 {[%emt 0:00:00]} Nf6 {[%emt 0:00:00]} 2. c4 {[%emt 0:00:00]} e6 {[%emt 0:00:00]} 3. Nf3 {[%emt 0:00:00]} b6 {[%emt 0:00:00]} 4. g3 {[%emt 0:00:00]} Bb7 {[%emt 0:00:09]} 5. Bg2 {[%emt 0:00:06]} Bb4+ {[%emt 0:00:06]} 6. Nbd2 {[%emt 0:00:33]} O-O {[%emt 0:00:24]} 7. O-O {[%emt 0:00:09]} Be7 {[%emt 0:00:54]} 8. Qc2 {[%emt 0:00:53]} d5 {[%emt 0:00:19]} 9. Ne5 {[%emt 0:00:18] E16: Queen's Indian: 4 g3 Bb7 5 Bg2 Bb4+} (9. cxd5 exd5 10. Ne5 c5 11. dxc5 bxc5 12. Rd1 Qc8 13. Nb3 a5 14. Be3 Na6 15. Rac1 d4 16. Bxb7 Qxb7 17. Bg5 Nb4 18. Qb1 a4 19. Nd2 Qd5 {½-½ (150) Nakamura,H (2787)-Harikrishna,P (2763) chess.com INT 2016}) 9... c5 {[%emt 0:00:29]} 10. dxc5 {[%emt 0:01:25]} Bxc5 {[%emt 0:01:56]} 11. cxd5 {[%emt 0:03:03]} Bxd5 {[%emt 0:00:58]} (11... Qc7 $15 12. Nec4 exd5) 12. e4 {[%emt 0:00:25]} Bb7 {[%emt 0:00:29]} 13. Ndc4 $146 {[%emt 0:00:29]} ({Predecessor:} 13. Nb3 Nbd7 14. Nxd7 Nxd7 15. Nxc5 Nxc5 16. Rd1 Qe7 {½-½ (43) Nemet,I (2427)-Kunte,A (2547) Biel 2001}) 13... h6 {[%emt 0:05:09]} 14. Bf4 {[%emt 0:06:24]} Nc6 {[%emt 0:09:35]} 15. Nxc6 {[%emt 0:00:20]} Bxc6 {[%emt 0:00:07]} 16. Rfd1 {[%emt 0:02:40]} Qc8 {[%emt 0:06:47] [#]} 17. Bd6 $1 {[%emt 0:01:35]} Rd8 {[%emt 0:01:38]} 18. Bxc5 {[%emt 0:00:12]} Rxd1+ {[%emt 0:00:36]} 19. Rxd1 {[%emt 0:00:01]} bxc5 {[%emt 0:00:09]} 20. Nd6 {[%emt 0:00:09]} Qd7 {[%emt 0:01:46]} 21. f3 {[%emt 0:11:56]} ({Better is} 21. Bf3 $18) 21... Qc7 {[%emt 0:08:34]} 22. Qxc5 {[%emt 0:01:12]} Rd8 {[%emt 0:00:35]} 23. e5 {[%emt 0:00:16]} Nd7 {[%emt 0:00:15]} 24. Qc3 {[%emt 0:02:31]} Qb6+ {[%emt 0:00:55]} 25. Kh1 {[%emt 0:00:14]} Bd5 {[%emt 0:02:51]} (25... f6 $14) 26. Nc8 {[%emt 0:02:55]} Qc5 {[%emt 0:05:26]} 27. Qxc5 {[%emt 0:00:09]} Nxc5 {[%emt 0:00:07]} 28. Ne7+ {[%emt 0:00:35]} Kf8 {[%emt 0:00:20]} 29. Nxd5 {[%emt 0:00:02]} Rxd5 {[%emt 0:00:26]} 30. Rxd5 {[%emt 0:00:07]} exd5 {[%emt 0:00:05]} 31. Bf1 {[%emt 0:12:37]} g5 {[%emt 0:05:29]} 32. Kg1 {[%emt 0:00:35]} Ke7 {[%emt 0:01:46]} 33. Kf2 {[%emt 0:00:50]} Ke6 {[%emt 0:08:22]} 34. f4 {[%emt 0:00:14]} d4 {[%emt 0:05:43]} 35. Bc4+ {[%emt 0:01:38]} Kf5 {[%emt 0:00:30]} 36. Kf3 {[%emt 0:04:41]} gxf4 {[%emt 0:01:38]} 37. gxf4 {[%emt 0:00:04]} d3 {[%emt 0:10:01]} 38. Bxf7 {[%emt 0:00:40]} d2 {[%emt 0:00:18]} 39. Ke2 {[%emt 0:00:05]} Nd3 {[%emt 0:00:38]} 40. Kxd2 {[%emt 0:00:27]} Nxf4 {[%emt 0:02:01]} 41. e6 {[%emt 0:30:13]} Kf6 {[%emt 0:30:19]} 42. b4 {[%emt 0:00:42]} Nd5 {[%emt 0:00:48]} 43. b5 {[%emt 0:00:30]} Ne7 {[%emt 0:00:30]} 44. a4 {[%emt 0:00:37]} Ke5 {[%emt 0:01:29]} 45. Kc3 {[%emt 0:00:30]} Nd5+ {[%emt 0:00:09]} 46. Kc4 {[%emt 0:00:20]} Kd6 {[%emt 0:01:26]} 47. a5 {[%emt 0:00:04]} Ne7 {[%emt 0:01:24]} 48. h3 {[%emt 0:01:11]} Nf5 {[%emt 0:00:55]} 49. Kb4 {[%emt 0:02:46]} Ne7 {[%emt 0:01:26]} 50. Kc4 $2 {[%emt 0:00:37]} (50. b6 $18) 50... Nf5 {[%emt 0:01:07]} 51. Bh5 {[%emt 0:06:38]} Ne7 {[%emt 0:03:02]} 52. Bg4 {[%emt 0:00:19]} Nc8 {[%emt 0:02:37]} 53. Kd4 {[%emt 0:00:36]} Ne7 {[%emt 0:00:40]} 54. h4 {[%emt 0:00:44]} a6 {[%emt 0:00:24]} 55. bxa6 $18 {[%emt 0:00:51]} 1-0

[Event "55th Rubinstein Memorial-C 2019"]
[Site "Polanica-Zdroj"]
[Date "2019.08.19"]
[Round "3.2"]
[White "Maslo, Slawomir"]
[Black "Grossmann, Ryszard"]
[Result "1-0"]
[ECO "A06"]
[WhiteElo "1687"]
[BlackElo "1975"]
[Annotator "NA RC"]
[PlyCount "91"]
[EventDate "2019.08.17"]
[EventType "swiss"]
[EventCountry "POL"]
[SourceTitle "playchess.com"]
[Source "ChessBase"]
[SourceQuality "1"]
[TimeControl "40/5400+30:1800+30"]

{[%evp 9,91,12,9,14,10,6,2,6,19,32767,32767,32767,23,-16,32767,32767,32767,32767,32767,0,-15,-25,-25,-19,32767,0,7,-8,0,-16,-4,0,7,0,8,32767,-24,-46,0,32767,0,-3,96,94,103,113,144,129,32767,32767,32767,289,369,192,180,185,166,137,254,32767,32767,32767,32767,260,262,32767,32767,32767,379,32767,573,418,599,32767,32767,704,671,606,32767,727,29999,29998,29998,29999]} 1. Nf3 {[%emt 0:00:00]} d5 {[%emt 0:04:08]} 2. c4 {[%emt 0:00:44]} c6 {[%emt 0:02:34]} 3. e3 {[%emt 0:01:48]} Nf6 {[%emt 0:01:21]} 4. b3 {[%emt 0:00:53]} Bg4 {[%emt 0:00:44]} 5. Be2 {[%emt 0:00:41]} e6 {[%emt 0:00:50]} 6. Bb2 {[%emt 0:01:03]} Nbd7 {[%emt 0:02:28]} 7. O-O {[%emt 0:02:16]} Bd6 {[%emt 0:00:59]} 8. d4 {[%emt 0:01:43]} Qb8 {[%emt 0:07:35] A12: English Opening: 1...c6 with b3 by White} (8... Ne4 9. Nfd2 Bxe2 10. Qxe2 O-O 11. Nxe4 dxe4 12. Ba3 Bxa3 13. Nxa3 f5 14. c5 e5 15. Qc4+ Kh8 16. d5 Qh4 17. dxc6 bxc6 {0-1 (27) Alekseev,E (2616)-Al Sayed,M (2511) Riadh 2017}) 9. Nbd2 {[%emt 0:05:07]} Bf5 {[%emt 0:02:24]} 10. h3 {[%emt 0:02:11]} h6 {[%emt 0:00:22]} 11. cxd5 $146 {[%emt 0:11:57]} ({Predecessor:} 11. a4 O-O 12. Ba3 a5 13. Qc1 Re8 14. Bxd6 Qxd6 15. Qb2 Ne4 16. Rfd1 {1-0 (72) Arkell,K (2462)-Sarakauskas,G (2408) England 2013}) 11... exd5 {[%emt 0:00:49]} 12. Nh4 {[%emt 0:03:51]} Bh7 {[%emt 0:00:20]} 13. Bg4 {[%emt 0:00:46]} Qc7 {[%emt 0:09:21]} 14. Bf5 {[%emt 0:01:46]} O-O {[%emt 0:06:21]} 15. Bxh7+ {[%emt 0:01:23]} Kxh7 {[%emt 0:00:03]} 16. Nf5 {[%emt 0:03:13]} Rfe8 {[%emt 0:00:26]} 17. Nxd6 {[%emt 0:01:07]} Qxd6 {[%emt 0:00:03]} 18. Re1 {[%emt 0:00:55]} Ne4 {[%emt 0:02:30]} 19. Qc2 {[%emt 0:00:54]} f5 {[%emt 0:02:27]} 20. Nf1 {[%emt 0:10:50]} Qg6 {[%emt 0:03:10]} 21. f3 {[%emt 0:02:16]} Ng5 {[%emt 0:00:20]} 22. Kh1 {[%emt 0:00:50]} Re6 {[%emt 0:03:39]} 23. Ng3 {[%emt 0:06:30]} Rf8 {[%emt 0:10:48]} 24. Kh2 {[%emt 0:02:20]} Kg8 {[%emt 0:03:49]} 25. Re2 {[%emt 0:00:23]} Qf7 {[%emt 0:03:20]} (25... Rff6 $11 {keeps the balance.}) 26. Ba3 {[%emt 0:02:17]} Rfe8 {[%emt 0:04:00]} 27. Nxf5 {[%emt 0:03:00]} Qf6 {[%emt 0:00:55]} 28. Rae1 {[%emt 0:02:40]} Nf7 {[%emt 0:00:11]} 29. e4 {[%emt 0:01:29]} g6 {[%emt 0:00:42]} 30. Ng3 {[%emt 0:05:34]} Qxd4 {[%emt 0:02:42]} 31. Bb2 {[%emt 0:00:15]} (31. exd5 $142 Rxe2 32. Nxe2) 31... Qc5 {[%emt 0:00:36]} 32. Qd2 {[%emt 0:06:27]} h5 {[%emt 0:04:14]} 33. b4 {[%emt 0:01:43]} (33. exd5 $18 Rxe2 34. Nxe2 (34. Rxe2 Rxe2 35. Nxe2 Qxd5 $16)) 33... Qd6 {[%emt 0:01:17]} (33... Qf8 $16) 34. Qd4 {[%emt 0:00:38]} Qf8 {[%emt 0:01:35]} 35. exd5 {[%emt 0:00:29]} Rxe2 {[%emt 0:00:24]} 36. Rxe2 {[%emt 0:00:27]} ({But not} 36. Nxe2 $6 cxd5 37. Rc1 (37. Qxd5 Qd6+ 38. Qxd6 Nxd6 $16) 37... Nde5 $18) 36... Rxe2 {[%emt 0:00:03]} 37. Nxe2 {[%emt 0:00:05]} cxd5 {[%emt 0:01:09]} 38. Nf4 {[%emt 0:01:02]} Nfe5 {[%emt 0:02:07]} 39. Nxd5 {[%emt 0:01:59]} Nc6 $2 {[%emt 0:03:01]} (39... Qd6 {is tougher.} 40. f4 Nb6 41. Nf6+ (41. fxe5 Qxd5 42. a3 Qxd4 $16) (41. Qxe5 Qxe5 42. Bxe5 Nxd5 $16) (41. Nxb6 Qxd4 42. Bxd4 Nc6 $18) 41... Qxf6 42. fxe5 Qe6 43. Qd8+ Kf7 44. Qc7+ Qe7) 40. Qh8+ {[%emt 0:00:52]} Kf7 {[%emt 0:00:08]} 41. Qh7+ {[%emt 0:30:17]} Ke6 {[%emt 0:30:38]} 42. Nc7+ {[%emt 0:00:34]} Kd6 {[%emt 0:01:21]} 43. Nb5+ {[%emt 0:00:03]} Ke6 {[%emt 0:00:23]} 44. Qxg6+ {[%emt 0:01:02]} Kd5 {[%emt 0:00:11]} 45. Nc7+ {[%emt 0:00:31]} Kc4 {[%emt 0:00:55]} 46. Qe4+ {[%emt 0:00:12] Kd5} 1-0

[Event "55th Rubinstein Memorial-C 2019"]
[Site "Polanica-Zdroj"]
[Date "2019.08.19"]
[Round "3.3"]
[White "Talik, Patryk"]
[Black "Filipska, Maja"]
[Result "1/2-1/2"]
[ECO "A52"]
[WhiteElo "1975"]
[BlackElo "1605"]
[Annotator "NA RC"]
[PlyCount "81"]
[EventDate "2019.08.17"]
[EventType "swiss"]
[EventCountry "POL"]
[SourceTitle "playchess.com"]
[Source "ChessBase"]
[SourceQuality "1"]
[TimeControl "40/5400+30:1800+30"]

{[%evp 9,66,38,32767,32767,49,32767,27,22,54,50,66,0,32767,32767,32767,10,9,32767,-17,-22,0,-31,239,47,69,35,64,56,59,58,66,32767,66,69,79,86,32767,32767,32767,230,224,208,258,154,139,143,189,32767,104,96,93,72,103,32767,106,100,404,12,14]} 1. d4 {[%emt 0:02:14]} Nf6 {[%emt 0:00:00]} 2. c4 {[%emt 0:00:06]} e5 {[%emt 0:00:00]} 3. dxe5 {[%emt 0:00:05]} Ng4 {[%emt 0:00:05]} 4. Bf4 {[%emt 0:00:04]} Nc6 {[%emt 0:00:35]} 5. Nf3 {[%emt 0:00:06]} Bb4+ {[%emt 0:01:15]} 6. Nc3 {[%emt 0:00:06]} Qe7 {[%emt 0:00:34]} 7. Qd5 {[%emt 0:00:12]} Bxc3+ {[%emt 0:01:23]} 8. bxc3 {[%emt 0:00:06]} Qa3 {[%emt 0:00:46]} 9. Rc1 {[%emt 0:08:36]} f6 $1 {[%emt 0:04:35] A52: Budapest Gambit} (9... d6 10. exd6 Be6 11. Qd2 O-O-O 12. Nd4 g5 13. Bxg5 Rxd6 14. e3 Nxd4 15. cxd4 Rb6 16. Bd3 Rb2 17. Bc2 Rg8 18. d5 Bd7 19. Bf4 Qxa2 20. O-O Qxc4 21. Qd1 {1-0 (21) Graf,A (2629)-Mueller,K (2517) Hoeckendorf 2004}) 10. Rc2 {[%emt 0:10:30]} Qe7 {[%emt 0:10:57]} 11. exf6 {[%emt 0:08:28]} Nxf6 {[%emt 0:00:16]} 12. Qd1 {[%emt 0:07:39]} d6 {[%emt 0:04:49]} 13. g3 $146 {[%emt 0:03:36]} ({Predecessor:} 13. e3 O-O 14. Be2 Bf5 15. Rb2 b6 16. Nd4 Bd7 17. Nb5 {0-1 (29) Clarke,T (2225)-Orr,M (2370) Armagh 1994}) 13... O-O {[%emt 0:04:39]} 14. Bg2 {[%emt 0:00:27]} Bf5 {[%emt 0:06:41]} 15. Rb2 {[%emt 0:02:31]} Ne4 $2 {[%emt 0:04:22]} (15... Be4 $1 $11 {and Black stays safe.}) 16. Nd4 {[%emt 0:15:27]} ({White should play} 16. Qd5+ $18 Rf7 17. Nh4) 16... Bg6 {[%emt 0:15:30]} 17. O-O {[%emt 0:18:03]} Nxc3 {[%emt 0:04:26]} 18. Nxc6 {[%emt 0:01:32]} bxc6 {[%emt 0:00:45]} 19. Qe1 {[%emt 0:01:25]} Ne4 {[%emt 0:01:51]} 20. Qa5 {[%emt 0:01:14]} Rf5 {[%emt 0:19:03]} 21. Qa6 {[%emt 0:02:01]} Qe8 {[%emt 0:02:23]} 22. Be3 {[%emt 0:03:51]} d5 {[%emt 0:02:01]} 23. Rb7 {[%emt 0:01:12]} Nd6 {[%emt 0:02:09]} 24. Rxc7 {[%emt 0:01:39]} Nxc4 {[%emt 0:00:53]} 25. Bf4 {[%emt 0:00:37]} ({Stronger than} 25. Rxa7 Rxa7 26. Qxa7 Re5 $11) ({Don't play} 25. Qxc6 $6 Qxc6 26. Rxc6 Nxe3) (25. Bxa7 $6 Ne5 $16) 25... Rf6 {[%emt 0:01:33]} 26. Qb7 {[%emt 0:02:35] Remove Defender} ({Weaker is} 26. Rxa7 Rxa7 27. Qxa7 Qxe2 $14) 26... Bf7 {[%emt 0:01:13]} 27. Bg5 {[%emt 0:00:55]} Rg6 {[%emt 0:02:17]} 28. Bh4 {[%emt 0:01:47]} Na5 {[%emt 0:04:10]} ({Black should play} 28... Rb8 $14 29. Qa6 (29. Qxa7 Ra8 $14) 29... h6) 29. Qa6 {[%emt 0:01:01]} Nc4 {[%emt 0:00:11]} 30. Re7 {[%emt 0:02:17]} Qb8 {[%emt 0:01:20]} 31. e4 {[%emt 0:02:03]} Qb6 {[%emt 0:02:10]} 32. Qa4 {[%emt 0:00:21]} Nd2 $2 {[%emt 0:00:40]} (32... Rf8 $16 {is more resistant.}) 33. Re1 $11 {[%emt 0:02:07]} (33. Rd1 $18 Nc4 34. exd5) 33... Nxe4 {[%emt 0:00:16]} 34. Bxe4 {[%emt 0:00:22]} dxe4 {[%emt 0:00:02]} 35. R1xe4 {[%emt 0:00:27]} Bd5 {[%emt 0:00:42]} 36. Re8+ {[%emt 0:01:38]} Rxe8 {[%emt 0:00:10]} 37. Rxe8+ {[%emt 0:00:02]} Kf7 {[%emt 0:00:02]} 38. Re7+ {[%emt 0:00:09]} Kg8 {[%emt 0:00:32]} 39. Re8+ {[%emt 0:01:09]} Kf7 {[%emt 0:00:02]} 40. Re7+ {[%emt 0:00:31]} Kg8 {[%emt 0:00:04]} 41. Qc2 1/2-1/2

[Event "55th Rubinstein Memorial-C 2019"]
[Site "Polanica-Zdroj"]
[Date "2019.08.19"]
[Round "3.4"]
[White "Szczesniak, Andrzej"]
[Black "Jaworski, Tymon"]
[Result "1/2-1/2"]
[ECO "E95"]
[WhiteElo "1954"]
[BlackElo "1598"]
[Annotator "NA RC"]
[PlyCount "43"]
[EventDate "2019.08.17"]
[EventType "swiss"]
[EventCountry "POL"]
[SourceTitle "playchess.com"]
[Source "ChessBase"]
[SourceQuality "1"]
[TimeControl "40/5400+30:1800+30"]

{[%evp 15,42,22,50,28,32767,23,107,102,110,106,106,32767,32767,96,99,32767,127,32767,32767,32767,32767,44,54,0,66,0,32767,0,62]} 1. d4 {[%emt 0:00:49]} Nf6 {[%emt 0:00:00]} 2. c4 {[%emt 0:00:12]} d6 {[%emt 0:00:00]} 3. Nc3 {[%emt 0:00:57]} Nbd7 {[%emt 0:00:00]} 4. e4 {[%emt 0:00:32]} e5 {[%emt 0:00:25]} 5. Nf3 {[%emt 0:00:12]} g6 {[%emt 0:00:33]} 6. Be2 {[%emt 0:00:35]} Bg7 {[%emt 0:00:13]} 7. O-O {[%emt 0:00:09]} O-O {[%emt 0:00:36]} 8. Re1 {[%emt 0:00:15]} c6 {[%emt 0:03:44]} 9. Bf1 {[%emt 0:01:17]} Qc7 {[%emt 0:01:23]} 10. d5 {[%emt 0:02:03]} c5 {[%emt 0:02:39]} ({Black should try} 10... a5 $14) 11. Rb1 {[%emt 0:02:02]} a6 {[%emt 0:01:11]} 12. a3 {[%emt 0:11:15]} Nh5 {[%emt 0:02:14]} 13. Be3 {[%emt 0:05:11]} Qd8 {[%emt 0:06:26]} 14. b4 {[%emt 0:08:20]} b6 {[%emt 0:00:38]} 15. Qa4 {[%emt 0:08:22]} f5 {[%emt 0:01:04]} 16. Qc6 {[%emt 0:03:42]} Ra7 {[%emt 0:01:28]} 17. Bg5 {[%emt 0:07:38]} Bf6 {[%emt 0:00:37]} 18. Bh6 {[%emt 0:03:44]} Bg7 $1 {[%emt 0:00:27]} 19. Bg5 {[%emt 0:04:59]} Bf6 {[%emt 0:00:30]} 20. Bh6 {[%emt 0:01:54]} Bg7 {[%emt 0:00:12]} 21. Bg5 {[%emt 0:03:33]} Bf6 $14 {[%emt 0:00:11]} 22. h4 $16 1/2-1/2

[Event "55th Rubinstein Memorial-C 2019"]
[Site "Polanica-Zdroj"]
[Date "2019.08.19"]
[Round "3.5"]
[White "Kardys, Zbigniew"]
[Black "Myrmus, Mateusz"]
[Result "1-0"]
[ECO "B40"]
[WhiteElo "1949"]
[BlackElo "1598"]
[Annotator "NA RC"]
[PlyCount "57"]
[EventDate "2019.08.17"]
[EventType "swiss"]
[EventCountry "POL"]
[SourceTitle "playchess.com"]
[Source "ChessBase"]
[SourceQuality "1"]
[TimeControl "40/5400+30:1800+30"]

{[%evp 17,56,14,32767,39,46,19,33,10,7,32767,19,10,32767,15,32767,32767,32767,32767,1,20,14,10,32767,5,4,0,32767,0,26,32767,32767,32767,31,4,32767,32767,32767,32767,32767,32767,808]} 1. e4 {[%emt 0:00:00]} c5 {[%emt 0:00:00]} 2. Nf3 {[%emt 0:00:00]} e6 {[%emt 0:00:00]} 3. d4 {[%emt 0:00:43]} cxd4 {[%emt 0:00:22]} 4. Nxd4 {[%emt 0:00:02]} Nf6 {[%emt 0:00:26]} 5. Nc3 {[%emt 0:00:42]} Nc6 {[%emt 0:00:43]} 6. Ndb5 {[%emt 0:01:07]} Bb4 {[%emt 0:00:19]} 7. a3 {[%emt 0:01:02]} Bxc3+ {[%emt 0:00:16]} 8. Nxc3 {[%emt 0:00:02]} d5 {[%emt 0:00:14]} 9. exd5 {[%emt 0:02:36]} exd5 {[%emt 0:00:04]} 10. Bd3 {[%emt 0:15:44]} O-O {[%emt 0:00:23]} 11. O-O {[%emt 0:00:07]} d4 {[%emt 0:01:31]} 12. Ne4 {[%emt 0:03:24]} Bf5 {[%emt 0:01:26]} 13. Bg5 {[%emt 0:06:15]} Bxe4 {[%emt 0:02:43]} 14. Bxe4 {[%emt 0:04:13]} h6 {[%emt 0:00:10]} 15. Bxf6 {[%emt 0:17:06]} Qxf6 {[%emt 0:00:06]} 16. Re1 {[%emt 0:00:02]} Rac8 {[%emt 0:01:21]} 17. Qf3 {[%emt 0:03:12]} Qxf3 {[%emt 0:00:19]} 18. Bxf3 {[%emt 0:00:13]} Rfd8 {[%emt 0:01:42]} 19. Be4 {[%emt 0:08:46]} Kf8 {[%emt 0:04:19]} 20. Kf1 {[%emt 0:01:14]} g6 {[%emt 0:01:40]} 21. g4 {[%emt 0:02:49]} Rc7 {[%emt 0:02:26]} 22. Bd3 {[%emt 0:04:55]} Re7 {[%emt 0:06:36]} 23. Rxe7 {[%emt 0:03:03]} Kxe7 {[%emt 0:01:02]} 24. Re1+ {[%emt 0:00:01]} Kf6 {[%emt 0:02:24]} 25. h4 {[%emt 0:04:51]} Ne5 {[%emt 0:01:09]} 26. g5+ {[%emt 0:00:24]} hxg5 {[%emt 0:00:19]} 27. hxg5+ {[%emt 0:00:02]} Ke6 {[%emt 0:00:05]} 28. f4 {[%emt 0:00:02]} Rd5 $18 {[%emt 0:00:11]} 29. Bc4 {[%emt 0:00:22]} 1-0

[Event "55th Rubinstein Memorial-C 2019"]
[Site "Polanica-Zdroj"]
[Date "2019.08.19"]
[Round "3.6"]
[White "Sroka, Janusz"]
[Black "Suchanek, Paulina"]
[Result "1-0"]
[ECO "C00"]
[WhiteElo "1875"]
[BlackElo "1593"]
[Annotator "NA RC"]
[PlyCount "115"]
[EventDate "2019.08.17"]
[EventType "swiss"]
[EventCountry "POL"]
[SourceTitle "playchess.com"]
[Source "ChessBase"]
[SourceQuality "1"]
[TimeControl "40/5400+30:1800+30"]

1. e4 {[%emt 0:00:00]} e6 {[%emt 0:02:56]} 2. d3 {[%emt 0:00:36]} d5 {[%emt 0:01:35]} 3. Nd2 {[%emt 0:00:06]} Nf6 {[%emt 0:03:27]} 4. Ngf3 {[%emt 0:00:16]} Bc5 {[%emt 0:13:18]} 5. h3 {[%emt 0:03:46]} Bxf2+ {[%emt 0:21:50]} 6. Kxf2 {[%emt 0:02:18]} dxe4 {[%emt 0:05:17]} 7. dxe4 {[%emt 0:00:27]} Nxe4+ {[%emt 0:00:09]} 8. Ke1 {[%emt 0:01:53]} Ng3 {[%emt 0:01:02]} 9. Rg1 {[%emt 0:00:41]} O-O {[%emt 0:10:56]} 10. Nc4 {[%emt 0:21:23]} (10. Bd3 $18) 10... Qe7 {[%emt 0:07:27]} (10... Nxf1 $16 {keeps fighting.} 11. Rxf1 Qxd1+ 12. Kxd1 f6) 11. Bf4 {[%emt 0:18:34]} Nxf1 {[%emt 0:14:39]} 12. Kxf1 {[%emt 0:00:12]} Qb4 {[%emt 0:04:29]} 13. Nfd2 {[%emt 0:01:35]} b5 {[%emt 0:01:10]} 14. c3 {[%emt 0:08:31]} Qc5 {[%emt 0:00:50]} 15. Ne3 {[%emt 0:13:24]} e5 {[%emt 0:01:41]} 16. Nb3 $1 {[%emt 0:01:01]} Qe7 {[%emt 0:05:14]} 17. Bg3 {[%emt 0:09:02]} Be6 {[%emt 0:01:48]} 18. Qf3 {[%emt 0:02:38]} Nd7 {[%emt 0:00:34] [#]} 19. Nd5 $1 {[%emt 0:00:59]} Bxd5 (19... Qg5 $14) 20. Qxd5 {[%emt 0:00:04]} e4 {[%emt 0:01:01]} (20... Qf6+ $16 {keeps fighting.} 21. Qf3 Qg6) 21. Nd4 {[%emt 0:01:16]} e3 {[%emt 0:00:27]} 22. Ke2 {[%emt 0:00:59]} ({Weaker is} 22. Qxb5 Rfe8 $16) ({Less strong is} 22. Bxc7 Rfe8 $16) 22... c5 {[%emt 0:00:37]} 23. Nc6 {[%emt 0:03:12]} Qe6 {[%emt 0:00:29]} 24. Qxe6 {[%emt 0:00:17]} fxe6 {[%emt 0:00:05]} 25. Rgf1 {[%emt 0:00:29]} Nf6 {[%emt 0:00:21]} 26. Bd6 {[%emt 0:01:20]} Rf7 {[%emt 0:00:58]} 27. Bxc5 {[%emt 0:00:46]} Rc8 {[%emt 0:00:33]} 28. Ne7+ {[%emt 0:00:12]} Rxe7 {[%emt 0:00:14]} 29. Bxe7 {[%emt 0:00:02]} Nd5 {[%emt 0:00:24]} 30. Bd6 {[%emt 0:01:17]} b4 {[%emt 0:00:47]} 31. c4 {[%emt 0:00:40]} Nf6 {[%emt 0:00:14]} 32. Rxf6 {[%emt 0:00:11]} gxf6 {[%emt 0:00:04]} 33. c5 {[%emt 0:00:14]} Kf7 {[%emt 0:00:24]} 34. Kxe3 {[%emt 0:00:24]} e5 {[%emt 0:00:20]} 35. Rf1 {[%emt 0:00:41]} Ke6 {[%emt 0:00:15]} 36. g4 {[%emt 0:00:57]} Rc6 {[%emt 0:00:11]} 37. Rc1 {[%emt 0:01:27]} Rc8 {[%emt 0:00:55]} 38. a3 {[%emt 0:01:08]} bxa3 39. bxa3 {[%emt 0:00:05]} Rg8 {[%emt 0:01:03]} 40. Rc4 {[%emt 0:00:20]} h5 {[%emt 0:00:25]} 41. Ra4 {[%emt 0:30:40]} hxg4 {[%emt 0:30:13]} 42. hxg4 {[%emt 0:00:50]} a5 {[%emt 0:01:47]} 43. Kf3 {[%emt 0:00:36]} Kd5 {[%emt 0:00:47]} 44. Re4 {[%emt 0:02:08]} Kc6 45. Re1 {[%emt 0:00:42]} Kd5 {[%emt 0:00:44]} 46. Rd1+ {[%emt 0:00:17]} Kc6 {[%emt 0:00:15]} 47. Be7 {[%emt 0:00:33]} e4+ {[%emt 0:00:37]} 48. Kf4 {[%emt 0:00:29]} Re8 {[%emt 0:00:10]} 49. Bd6 {[%emt 0:02:56]} Re6 {[%emt 0:01:17]} 50. Kf5 {[%emt 0:00:19]} Re8 {[%emt 0:00:25]} 51. Kxf6 {[%emt 0:01:35]} e3 {[%emt 0:00:10]} 52. g5 {[%emt 0:00:13]} e2 {[%emt 0:00:20]} 53. Re1 {[%emt 0:00:02]} Re3 {[%emt 0:00:31]} 54. g6 {[%emt 0:00:14]} Rf3+ {[%emt 0:00:22]} 55. Kg5 {[%emt 0:00:10]} Re3 {[%emt 0:01:09]} 56. g7 {[%emt 0:00:10]} Re8 {[%emt 0:00:16]} 57. Bf8 {[%emt 0:01:07]} Re3 {[%emt 0:00:09]} 58. Kf4 {[%emt 0:00:10]} 1-0